fUST/lending_fUST_20250527
["ID","MTS","AMOUNT","RATE_DAILY","PERIOD"]
[362476853,1748330979365,-573.26146719,0.00019726,2]
[362476854,1748330979388,-430.0,0.00019726,2]
[362476855,1748330979412,-221.2227,0.00019726,2]
[362476856,1748330979436,-430.0,0.00019726,2]
[362476857,1748330979462,-407.566118,0.00019726,2]
[362476858,1748330979486,-407.566118,0.00019726,2]
[362476859,1748330979511,-407.566118,0.00019726,2]
[362476860,1748330979536,-407.566118,0.00019726,2]
[362476861,1748330979560,-430.0,0.00019726,2]
[362476862,1748330979584,-430.0,0.00019726,2]
[362476863,1748330979609,-430.0,0.00019726,2]
[362476864,1748330979636,-430.0,0.00019726,2]
[362476865,1748330979662,-430.0,0.00019726,2]
[362476866,1748330979687,-430.0,0.00019726,2]
[362476867,1748330979714,-430.0,0.00019726,2]
[362476868,1748330979738,-430.0,0.00019726,2]
[362476869,1748330979765,-430.0,0.00019726,2]
[362476870,1748330979791,-430.0,0.00019726,2]
[362476871,1748330979816,-430.0,0.00019726,2]
[362476872,1748330979842,-430.0,0.00019726,2]
[362476873,1748330979870,-654.6,0.00019726,2]
[362476874,1748330979897,-483.75,0.00019726,2]
[362476875,1748330979925,-491.59981371,0.00019726,2]
[362476876,1748330979952,-430.0,0.00019726,2]
[362476877,1748330979979,-515.63,0.00019726,2]
[362476878,1748330980003,-430.0,0.00019726,2]
[362476879,1748330980028,-430.0,0.00019726,2]
[362476880,1748330980052,-430.0,0.00019726,2]
[362476881,1748330980076,-528.73,0.00019726,2]
[362476882,1748330980100,-430.0,0.00019726,2]
[362476883,1748330980124,-430.0,0.00019726,2]
[362476884,1748330980150,-430.0,0.00019726,2]
[362476885,1748330980176,-955.67,0.00019726,2]
[362476886,1748330980200,-430.0,0.00019726,2]
[362476887,1748330980225,-430.0,0.00019726,2]
[362476888,1748330980249,-430.0,0.00019726,2]
[362476889,1748330980273,-430.0,0.00019726,2]
[362476890,1748330980298,-979.21,0.00019726,2]
[362476891,1748330980323,-430.0,0.00019726,2]
[362476892,1748330980347,-483.81,0.00019726,2]
[362476893,1748330980372,-430.0,0.00019726,2]
[362476894,1748330980397,-430.0,0.00019726,2]
[362476895,1748330980425,-430.0,0.00019726,2]
[362476896,1748330980454,-1260.72,0.00019726,2]
[362476897,1748330980479,-151.0,0.00019726,2]
[362476898,1748330980503,-242.79342,0.00019726,2]
[362476899,1748330980528,-741.04,0.00019726,2]
[362476900,1748330980554,-774.59,0.00019726,2]
[362476901,1748330980578,-430.0,0.00019726,2]
[362476902,1748330980603,-430.0,0.00019726,2]
[362476903,1748330980628,-430.0,0.00019726,2]
[362476904,1748330980652,-430.0,0.00019726,2]
[362476905,1748330980675,-430.0,0.00019726,2]
[362476906,1748330980699,-430.0,0.00019726,2]
[362476907,1748330980723,-430.0,0.00019726,2]
[362476908,1748330980747,-475.52,0.00019726,2]
[362476909,1748330980770,-430.0,0.00019726,2]
[362476910,1748330980900,-430.0,0.00019726,2]
[362476911,1748330980927,-430.0,0.00019726,2]
[362476912,1748330980951,-430.0,0.00019726,2]
[362476913,1748330980977,-430.0,0.00019726,2]
[362476914,1748330981003,-430.0,0.00019726,2]
[362476915,1748330981033,-430.0,0.00019726,2]
[362476916,1748330981058,-430.0,0.00019726,2]
[362476917,1748330981083,-470.0,0.00019726,2]
[362476918,1748330981109,-430.0,0.00019726,2]
[362476919,1748330981134,-430.0,0.00019726,2]
[362476920,1748330981161,-430.0,0.00019726,2]
[362476921,1748330981186,-430.0,0.00019726,2]
[362476922,1748330981210,-151.0,0.00019726,2]
[362476923,1748330981235,-151.0,0.00019726,2]
[362476924,1748330981266,-430.0,0.00019726,2]
[362476925,1748330981295,-1896.56,0.00019726,2]
[362476926,1748330981321,-430.0,0.00019726,2]
[362476927,1748330981346,-430.0,0.00019726,2]
[362476928,1748330981371,-430.0,0.00019726,2]
[362476929,1748330981399,-430.0,0.00019726,2]
[362476930,1748330981425,-570.0,0.00019726,2]
[362476931,1748330981450,-430.0,0.00019726,2]
[362476932,1748330981481,-793.0,0.00019726,2]
[362476933,1748330981507,-430.0,0.00019726,2]
[362476934,1748330981533,-430.0,0.00019726,2]
[362476935,1748330981561,-1419.32,0.00019726,2]
[362476936,1748330981587,-430.0,0.00019726,2]
[362476937,1748330981614,-1132.35,0.00019726,2]
[362476938,1748330981640,-430.0,0.00019726,2]
[362476939,1748330981664,-430.0,0.00019726,2]
[362476940,1748330981689,-430.0,0.00019726,2]
[362476941,1748330981715,-430.0,0.00019726,2]
[362476942,1748330981754,-430.0,0.00019726,2]
[362476943,1748330981794,-430.0,0.00019726,2]
[362476944,1748330981838,-430.0,0.00019726,2]
[362476945,1748330981882,-430.0,0.00019726,2]
[362476946,1748330981924,-593.45,0.00019726,2]
[362476947,1748330981970,-430.0,0.00019726,2]
[362476948,1748330982008,-500.0,0.00019726,2]
[362476949,1748330982049,-430.0,0.00019726,2]
[362476950,1748330982086,-430.0,0.00019726,2]
[362476951,1748330982125,-430.0,0.00019726,2]
[362476952,1748330982164,-589.37,0.00019726,2]
[362476953,1748330982201,-430.0,0.00019726,2]
[362476954,1748330982239,-430.0,0.00019726,2]
[362476955,1748330982278,-420.56,0.00019726,2]
[362476956,1748330982316,-430.0,0.00019726,2]
[362476957,1748330982354,-430.0,0.00019726,2]
[362476958,1748330982391,-430.0,0.00019726,2]
[362476959,1748330982434,-2337.04,0.00019726,2]
[362476960,1748330982469,-924.09,0.00019726,2]
[362476961,1748330982507,-430.0,0.00019726,2]
[362476962,1748330982544,-1597.61,0.00019726,2]
[362476963,1748330982578,-430.0,0.00019726,2]
[362476964,1748330982612,-430.0,0.00019726,2]
[362476965,1748330982647,-430.0,0.00019726,2]
[362476966,1748330982682,-430.0,0.00019726,2]
[362476967,1748330982718,-430.0,0.00019726,2]
[362476968,1748330982751,-430.0,0.00019726,2]
[362476969,1748330982786,-430.0,0.00019726,2]
[362476970,1748330982821,-430.0,0.00019726,2]
[362476971,1748330982856,-451.68,0.00019726,2]
[362476972,1748330982890,-1000.49,0.00019726,2]
[362476973,1748330982922,-151.0,0.00019726,2]
[362476974,1748330982955,-151.0,0.00019726,2]
[362476975,1748330982991,-607.67,0.00019726,2]
[362476976,1748330983024,-430.0,0.00019726,2]
[362476977,1748330983058,-430.0,0.00019726,2]
[362476978,1748330983092,-2112.66,0.00019726,2]
[362476979,1748330983127,-2759.1,0.00019726,2]
[362476980,1748330983160,-430.0,0.00019726,2]
[362476981,1748330983194,-430.0,0.00019726,2]
[362476982,1748330983232,-430.0,0.00019726,2]
[362476983,1748330983267,-430.0,0.00019726,2]
[362476984,1748330983303,-430.0,0.00019726,2]
[362476985,1748330983338,-430.0,0.00019726,2]
[362476986,1748330983460,-430.0,0.00019726,2]
[362476987,1748330983495,-430.0,0.00019726,2]
[362476988,1748330983533,-430.0,0.00019726,2]
[362476989,1748330983571,-526.96,0.00019726,2]
[362476990,1748330983610,-430.0,0.00019726,2]
[362476991,1748330983651,-430.0,0.00019726,2]
[362476992,1748330983693,-430.0,0.00019726,2]
[362476993,1748330983733,-430.0,0.00019726,2]
[362476994,1748330983775,-430.0,0.00019726,2]
[362476995,1748330983813,-430.0,0.00019726,2]
[362476996,1748330983852,-430.0,0.00019726,2]
[362476997,1748330983890,-430.0,0.00019726,2]
[362476998,1748330983929,-430.0,0.00019726,2]
[362476999,1748330983970,-430.0,0.00019726,2]
[362477000,1748330984009,-430.0,0.00019726,2]
[362477001,1748330984051,-430.0,0.00019726,2]
[362477002,1748330984091,-698.55,0.00019726,2]
[362477003,1748330984131,-430.0,0.00019726,2]
[362477004,1748330984170,-790.35,0.00019726,2]
[362477005,1748330984208,-561.02,0.00019726,2]
[362477006,1748330984246,-430.0,0.00019726,2]
[362477007,1748330984287,-430.0,0.00019726,2]
[362477008,1748330984330,-430.0,0.00019726,2]
[362477009,1748330984370,-430.0,0.00019726,2]
[362477010,1748330984409,-644.94,0.00019726,2]
[362477011,1748330984450,-430.0,0.00019726,2]
[362477012,1748330984490,-482.94,0.00019726,2]
[362477013,1748330984530,-151.0,0.00019726,2]
[362477014,1748330984567,-745.06,0.00019726,2]
[362477015,1748330984605,-430.0,0.00019726,2]
[362477016,1748330984644,-587.0,0.00019745,2]
[362477017,1748330984683,-587.0,0.00019746,2]
[362477018,1748330984721,-500.0,0.00019749,2]
[362477019,1748330984760,-270.83062482,0.00019749,2]
[362477020,1748330984798,-500.0,0.00019749,2]
[362477021,1748330984839,-500.0,0.00019749,2]
[362477022,1748330984880,-500.0,0.00019749,2]
[362477023,1748330984920,-500.0,0.00019749,2]
[362477024,1748330984962,-500.0,0.00019749,2]
[362477025,1748330985001,-500.0,0.00019749,2]
[362477026,1748330985042,-500.0,0.00019749,2]
[362477027,1748330985085,-500.0,0.00019749,2]
[362477028,1748330985126,-500.0,0.00019749,2]
[362477029,1748330985167,-500.0,0.00019749,2]
[362477030,1748330985205,-500.28861401,0.0001977,2]
[362477031,1748330985243,-501.7458096,0.00019849,2]
[362477032,1748330985280,-1075.65826664,0.000199,2]
[362477033,1748330985317,-160.0,0.00019946,2]
[362477034,1748330985352,-160.0,0.00019946,2]
[362477035,1748330985391,-160.0,0.00019946,2]
[362477036,1748330985433,-160.0,0.00019947,2]
[362477037,1748330985475,-229.18805157,0.00019947,2]
[362477038,1748330985515,-160.0,0.00019947,2]
[362477039,1748330985555,-160.0,0.00019947,2]
[362477040,1748330985593,-212.62946336,0.00019947,2]
[362477041,1748330985631,-160.0,0.00019947,2]
[362477042,1748330985668,-160.0,0.00019947,2]
[362477043,1748330985707,-151.0,0.00019983,2]
[362477044,1748330985744,-842.5625,0.00019983,2]
[362477045,1748330985782,-2015.0,0.0002,2]
[362477047,1748330985820,-430.0,0.0002,2]
[362477048,1748330985858,-430.0,0.0002,2]
[362477049,1748330985896,-441.49245202,0.0002,2]
[362477050,1748330985937,-430.0,0.0002,2]
[362477051,1748330985973,-430.0,0.0002,2]
[362477052,1748330986009,-430.0,0.0002,2]
[362477053,1748330986046,-500.0,0.0002,2]
[362477054,1748330986082,-430.0,0.0002,2]
[362477055,1748330986120,-430.0,0.0002,2]
[362477056,1748330986156,-430.0,0.0002,2]
[362477057,1748330986194,-430.0,0.0002,2]
[362477058,1748330986230,-430.0,0.0002,2]
[362477059,1748330986267,-167.96451252,0.0002,2]
[362477060,1748330986301,-430.0,0.0002,2]
[362477061,1748330986430,-272.19913309,0.0002,2]
[362477062,1748330986468,-525.09977558,0.0002,2]
[362477063,1748330986508,-430.0,0.0002,2]
[362477064,1748330986547,-442.82451361,0.0002,2]
[362477065,1748330986584,-430.0,0.0002,2]
[362477066,1748330986623,-430.0,0.0002,2]
[362477067,1748330986661,-430.0,0.0002,2]
[362477068,1748330986696,-186.6188672,0.0002,7]
[362477069,1748330986734,-363.59601542,0.0002,2]
[362477070,1748330986770,-430.0,0.0002,2]
[362477071,1748330986808,-430.0,0.0002,2]
[362477072,1748330986843,-311.18,0.0002,2]
[362477073,1748330986884,-430.0,0.0002,2]
[362477074,1748330986923,-430.0,0.0002,2]
[362477075,1748330986961,-157.89,0.0002,2]
[362477076,1748330986997,-430.0,0.0002,2]
[362477077,1748330987032,-430.0,0.0002,2]
[362477078,1748330987068,-430.0,0.0002,2]
[362477079,1748330987105,-430.0,0.0002,2]
[362477080,1748330987142,-430.0,0.0002,2]
[362477081,1748330987179,-427.27072865,0.0002,2]
[362477082,1748330987216,-442.93548135,0.0002,2]
[362477083,1748330987253,-430.0,0.0002,2]
[362477084,1748330987297,-523.4,0.0002,2]
[362477085,1748330987338,-430.0,0.0002,2]
[362477086,1748330987377,-430.0,0.0002,2]
[362477087,1748330987416,-430.0,0.0002,2]
[362477088,1748330987456,-475.69,0.0002,2]
[362477089,1748330987496,-430.0,0.0002,2]
[362477090,1748330987535,-430.0,0.0002,2]
[362477091,1748330987573,-430.0,0.0002,2]
[362477092,1748330987610,-354.78945124,0.0002,2]
[362477093,1748330987647,-430.0,0.0002,2]
[362477094,1748330987686,-324.97054936,0.0002,2]
[362477095,1748330987725,-592.3,0.0002,2]
[362477096,1748330987766,-430.0,0.0002,2]
[362477097,1748330987806,-430.0,0.0002,2]
[362477098,1748330987844,-430.0,0.0002,2]
[362477099,1748330987886,-430.0,0.0002,2]
[362477100,1748330987925,-430.0,0.0002,2]
[362477101,1748330987963,-430.0,0.0002,2]
[362477102,1748330987997,-430.0,0.0002,2]
[362477103,1748330988031,-430.0,0.0002,2]
[362477104,1748330988065,-430.0,0.0002,2]
[362477105,1748330988102,-430.0,0.0002,2]
[362477106,1748330988136,-552.52,0.0002,2]
[362477107,1748330988172,-430.0,0.0002,2]
[362477108,1748330988209,-430.0,0.0002,2]
[362477109,1748330988246,-430.0,0.0002,2]
[362477110,1748330988281,-407.566118,0.0002,2]
[362477111,1748330988317,-407.566118,0.0002,2]
[362477112,1748330988352,-430.0,0.0002,2]
[362477113,1748330988388,-516.52846748,0.0002,2]
[362477114,1748330988424,-430.0,0.0002,2]
[362477115,1748330988462,-456.05015292,0.0002,2]
[362477116,1748330988498,-430.0,0.0002,2]
[362477117,1748330988535,-430.0,0.0002,2]
[362477118,1748330988572,-430.0,0.0002,2]
[362477119,1748330988609,-430.0,0.0002,2]
[362477120,1748330988647,-430.0,0.0002,2]
[362477121,1748330988685,-490.0,0.0002,2]
[362477122,1748330988724,-430.0,0.0002,2]
[362477123,1748330988765,-430.0,0.0002,2]
[362477124,1748330988802,-654.6,0.0002,2]
[362477125,1748330988840,-483.75,0.0002,2]
[362477126,1748330988885,-430.0,0.0002,2]
[362477127,1748330988931,-515.63,0.0002,2]
[362477128,1748330988974,-442.58782504,0.0002,2]
[362477129,1748330989012,-430.0,0.0002,2]
[362477130,1748330989051,-528.73,0.0002,2]
[362477131,1748330989169,-430.0,0.0002,2]
[362477132,1748330989217,-430.0,0.0002,2]
[362477133,1748330989261,-430.0,0.0002,2]
[362477134,1748330989307,-955.67,0.0002,2]
[362477135,1748330989350,-430.0,0.0002,2]
[362477136,1748330989391,-430.0,0.0002,2]
[362477137,1748330989431,-430.0,0.0002,2]
[362477138,1748330989474,-430.0,0.0002,2]
[362477139,1748330989514,-979.21,0.0002,2]
[362477140,1748330989551,-483.81,0.0002,2]
[362477141,1748330989588,-430.0,0.0002,2]
[362477142,1748330989628,-430.0,0.0002,2]
[362477143,1748330989668,-430.0,0.0002,2]
[362477145,1748330989708,-1260.72,0.0002,2]
[362477147,1748330989749,-741.04,0.0002,2]
[362477148,1748330989785,-774.59,0.0002,2]
[362477149,1748330989820,-300.39179917,0.0002,2]
[362477150,1748330989855,-430.0,0.0002,2]
[362477151,1748330989890,-430.0,0.0002,2]
[362477152,1748330989927,-430.0,0.0002,2]
[362477153,1748330989967,-152.89927351,0.0002,2]
[362477154,1748330990003,-430.0,0.0002,2]
[362477155,1748330990043,-430.0,0.0002,2]
[362477156,1748330990080,-430.0,0.0002,2]
[362477157,1748330990118,-475.52,0.0002,2]
[362477158,1748330990154,-430.0,0.0002,2]
[362477159,1748330990191,-430.0,0.0002,2]
[362477160,1748330990227,-430.0,0.0002,2]
[362477161,1748330990262,-430.0,0.0002,2]
[362477162,1748330990297,-430.0,0.0002,2]
[362477163,1748330990334,-439.15417083,0.0002,2]
[362477164,1748330990370,-430.0,0.0002,2]
[362477165,1748330990410,-430.0,0.0002,2]
[362477166,1748330990448,-480.1771151,0.0002,2]
[362477167,1748330990488,-430.0,0.0002,2]
[362477168,1748330990525,-510.0,0.0002,2]
[362477169,1748330990562,-151.0,0.0002,2]
[362477170,1748330990599,-430.0,0.0002,2]
[362477171,1748330990642,-1896.56,0.0002,2]
[362477172,1748330990680,-430.0,0.0002,2]
[362477173,1748330990719,-430.0,0.0002,2]
[362477174,1748330990755,-430.0,0.0002,2]
[362477175,1748330990789,-430.0,0.0002,2]
[362477176,1748330990824,-430.0,0.0002,2]
[362477177,1748330990862,-793.0,0.0002,2]
[362477178,1748330990900,-430.0,0.0002,2]
[362477179,1748330990936,-1419.32,0.0002,2]
[362477180,1748330990973,-1132.35,0.0002,2]
[362477181,1748330991006,-445.29519821,0.0002,2]
[362477182,1748330991041,-430.0,0.0002,2]
[362477183,1748330991076,-430.0,0.0002,2]
[362477184,1748330991111,-430.0,0.0002,2]
[362477185,1748330991145,-430.0,0.0002,2]
[362477186,1748330991182,-430.0,0.0002,2]
[362477187,1748330991218,-430.0,0.0002,2]
[362477188,1748330991253,-430.0,0.0002,2]
[362477189,1748330991289,-593.45,0.0002,2]
[362477190,1748330991325,-430.0,0.0002,2]
[362477191,1748330991360,-500.0,0.0002,2]
[362477192,1748330991397,-556.88518405,0.0002,2]
[362477193,1748330991433,-430.0,0.0002,2]
[362477194,1748330991471,-430.0,0.0002,2]
[362477195,1748330991508,-589.37,0.0002,2]
[362477196,1748330991545,-408.66051867,0.0002,2]
[362477197,1748330991581,-430.0,0.0002,2]
[362477198,1748330991618,-430.0,0.0002,2]
[362477199,1748330991659,-430.0,0.0002,2]
[362477200,1748330991702,-2337.04,0.0002,2]
[362477201,1748330991833,-924.09,0.0002,2]
[362477202,1748330991877,-430.0,0.0002,2]
[362477203,1748330991921,-1597.61,0.0002,2]
[362477204,1748330991960,-430.0,0.0002,2]
[362477205,1748330991999,-430.0,0.0002,2]
[362477206,1748330992039,-430.0,0.0002,2]
[362477207,1748330992079,-430.0,0.0002,2]
[362477208,1748330992117,-430.0,0.0002,2]
[362477209,1748330992154,-430.0,0.0002,2]
[362477210,1748330992191,-430.0,0.0002,2]
[362477211,1748330992226,-430.0,0.0002,2]
[362477212,1748330992264,-451.68,0.0002,2]
[362477213,1748330992304,-1000.49,0.0002,2]
[362477214,1748330992344,-151.0,0.0002,2]
[362477215,1748330992383,-151.0,0.0002,2]
[362477216,1748330992423,-607.67,0.0002,2]
[362477217,1748330992461,-430.0,0.0002,2]
[362477218,1748330992500,-430.0,0.0002,2]
[362477219,1748330992542,-2112.66,0.0002,2]
[362477220,1748330992586,-2759.1,0.0002,2]
[362477221,1748330992623,-337.18691418,0.0002,2]
[362477222,1748330992664,-430.0,0.0002,2]
[362477223,1748330992701,-173.89925003,0.0002,2]
[362477224,1748330992740,-430.0,0.0002,2]
[362477225,1748330992776,-430.0,0.0002,2]
[362477226,1748330992813,-430.0,0.0002,2]
[362477227,1748330992851,-430.0,0.0002,2]
[362477228,1748330992889,-1180.78433899,0.0002,2]
[362477229,1748330992923,-359.55752897,0.0002,2]
[362477230,1748330992958,-30000.0,0.0002,2]
[362477231,1748330992994,-430.0,0.0002,2]
[362477232,1748330993028,-430.0,0.0002,2]
[362477233,1748330993063,-2678.46873776,0.0002,2]
[362477234,1748330993100,-526.96,0.0002,2]
[362477235,1748330993135,-430.0,0.0002,2]
[362477236,1748330993171,-430.0,0.0002,2]
[362477237,1748330993209,-430.0,0.0002,2]
[362477238,1748330993248,-430.0,0.0002,2]
[362477239,1748330993286,-67277.75429682,0.0002,2]
[362477240,1748330993326,-456.79734651,0.0002,2]
[362477241,1748330993364,-430.0,0.0002,2]
[362477242,1748330993403,-430.0,0.0002,2]
[362477243,1748330993441,-430.0,0.0002,2]
[362477244,1748330993479,-430.0,0.0002,2]
[362477245,1748330993518,-430.0,0.0002,2]
[362477246,1748330993558,-698.55,0.0002,2]
[362477247,1748330993597,-430.0,0.0002,2]
[362477248,1748330993637,-790.35,0.0002,2]
[362477249,1748330993676,-561.02,0.0002,2]
[362477250,1748330993712,-430.0,0.0002,2]
[362477251,1748330993750,-430.0,0.0002,2]
[362477252,1748330993784,-430.0,0.0002,2]
[362477253,1748330993822,-430.0,0.0002,2]
[362477254,1748330993864,-644.94,0.0002,2]
[362477255,1748330993905,-457.91108308,0.0002,2]
[362477256,1748330993942,-482.94,0.0002,2]
[362477257,1748330993981,-151.0,0.0002,2]
[362477258,1748330994018,-745.06,0.0002,2]
[362477259,1748330994054,-1000.0,0.00020021,2]
[362477260,1748330994091,-1013.19229648,0.00020021,2]
[362477261,1748330994127,-176.80455064,0.00020086,5]
[362477262,1748330994163,-151.0,0.000201,3]
[362477263,1748330994203,-215.0738,0.0002025,2]
[362477264,1748330994240,-430.0,0.00020273,2]
[362477265,1748330994277,-430.0,0.00020273,2]
[362477266,1748330994425,-323.27982967,0.00020273,2]
[362477267,1748330994467,-430.0,0.00020273,2]
[362477268,1748330994509,-430.0,0.00020273,2]
[362477269,1748330994549,-500.0,0.00020273,2]
[362477270,1748330994589,-430.0,0.00020273,2]
[362477271,1748330994628,-430.0,0.00020273,2]
[362477272,1748330994666,-430.0,0.00020273,2]
[362477273,1748330994705,-254.14470734,0.00020273,2]
[362477274,1748330994743,-443.92716718,0.00020273,2]
[362477275,1748330994780,-430.0,0.00020273,2]
[362477276,1748330994817,-440.0,0.00020273,2]
[362477277,1748330994855,-430.0,0.00020273,2]
[362477278,1748330994893,-430.0,0.00020273,2]
[362477279,1748330994932,-484.91000242,0.00020273,2]
[362477280,1748330994970,-472.01067594,0.00020273,2]
[362477281,1748330995009,-430.0,0.00020273,2]
[362477282,1748330995046,-430.0,0.00020273,2]
[362477283,1748330995085,-430.0,0.00020273,2]
[362477284,1748330995123,-430.0,0.00020273,2]
[362477285,1748330995160,-381.4688784,0.00020273,2]
[362477286,1748330995198,-430.0,0.00020273,2]
[362477287,1748330995237,-430.0,0.00020273,2]
[362477288,1748330995280,-430.0,0.00020273,2]
[362477289,1748330995319,-304.90451865,0.00020273,2]
[362477290,1748330995358,-472.10452465,0.00020273,2]
[362477291,1748330995397,-430.0,0.00020273,2]
[362477292,1748330995435,-430.0,0.00020273,2]
[362477293,1748330995475,-475.69,0.00020273,2]
[362477294,1748330995514,-430.0,0.00020273,2]
[362477295,1748330995554,-391.78819971,0.00020273,2]
[362477296,1748330995592,-430.0,0.00020273,2]
[362477297,1748330995632,-430.0,0.00020273,2]
[362477298,1748330995675,-592.3,0.00020273,2]
[362477299,1748330995718,-430.0,0.00020273,2]
[362477300,1748330995757,-430.0,0.00020273,2]
[362477301,1748330995796,-430.0,0.00020273,2]
[362477302,1748330995838,-430.0,0.00020273,2]
[362477303,1748330995877,-430.0,0.00020273,2]
[362477304,1748330995922,-447.08089917,0.00020273,2]
[362477305,1748330995962,-430.0,0.00020273,2]
[362477306,1748330996003,-430.0,0.00020273,2]
[362477307,1748330996045,-552.52,0.00020273,2]
[362477308,1748330996086,-430.0,0.00020273,2]
[362477309,1748330996127,-430.0,0.00020273,2]
[362477310,1748330996166,-430.0,0.00020273,2]
[362477311,1748330996206,-407.566118,0.00020273,2]
[362477312,1748330996246,-407.566118,0.00020273,2]
[362477313,1748330996287,-430.0,0.00020273,2]
[362477314,1748330996327,-430.0,0.00020273,2]
[362477315,1748330996368,-430.0,0.00020273,2]
[362477316,1748330996410,-430.0,0.00020273,2]
[362477317,1748330996451,-430.0,0.00020273,2]
[362477318,1748330996489,-440.0,0.00020273,2]
[362477319,1748330996535,-430.0,0.00020273,2]
[362477320,1748330996577,-430.0,0.00020273,2]
[362477321,1748330996617,-430.0,0.00020273,2]
[362477322,1748330996655,-654.6,0.00020273,2]
[362477323,1748330996694,-483.75,0.00020273,2]
[362477324,1748330996733,-430.0,0.00020273,2]
[362477325,1748330996773,-515.63,0.00020273,2]
[362477326,1748330996810,-430.0,0.00020273,2]
[362477327,1748330996936,-528.73,0.00020273,2]
[362477328,1748330996996,-430.0,0.00020273,2]
[362477329,1748330997038,-430.0,0.00020273,2]
[362477330,1748330997076,-430.0,0.00020273,2]
[362477331,1748330997115,-955.67,0.00020273,2]
[362477332,1748330997152,-430.0,0.00020273,2]
[362477333,1748330997189,-430.0,0.00020273,2]
[362477334,1748330997230,-430.0,0.00020273,2]
[362477335,1748330997267,-430.0,0.00020273,2]
[362477336,1748330997306,-979.21,0.00020273,2]
[362477337,1748330997344,-483.81,0.00020273,2]
[362477338,1748330997382,-430.0,0.00020273,2]
[362477339,1748330997420,-430.0,0.00020273,2]
[362477340,1748330997458,-430.0,0.00020273,2]
[362477341,1748330997500,-1260.72,0.00020273,2]
[362477342,1748330997542,-741.04,0.00020273,2]
[362477343,1748330997586,-774.59,0.00020273,2]
[362477344,1748330997625,-430.0,0.00020273,2]
[362477345,1748330997662,-530.0,0.00020273,2]
[362477346,1748330997698,-430.0,0.00020273,2]
[362477347,1748330997735,-430.0,0.00020273,2]
[362477348,1748330997771,-558.16197052,0.00020273,2]
[362477349,1748330997808,-430.0,0.00020273,2]
[362477350,1748330997845,-475.52,0.00020273,2]
[362477351,1748330997886,-430.0,0.00020273,2]
[362477352,1748330997924,-430.0,0.00020273,2]
[362477353,1748330997961,-367.67524513,0.00020273,2]
[362477354,1748330997999,-436.69522882,0.00020273,2]
[362477355,1748330998041,-430.0,0.00020273,2]